bitfinex/quotes_BTCUSD_20250813
["timestamp","ask_amount","ask_price","bid_price","bid_amount"]
[1755126062247,1.29476539,122830.0,122820.0,0.19516081]
[1755126062449,1.34239029,122830.0,122820.0,0.14448081]
[1755126063633,1.34239029,122830.0,122820.0,0.00012081]
[1755126063832,1.34239029,122830.0,122820.0,0.14428081]
[1755126064107,1.34239029,122830.0,122820.0,0.00012081]
[1755126064314,1.34239029,122830.0,122820.0,0.14416081]
[1755126064524,1.34239029,122830.0,122820.0,0.00012081]
[1755126065071,1.34239029,122830.0,122820.0,0.14404081]
[1755126065403,1.34239029,122830.0,122820.0,0.00012081]
[1755126065610,1.36678629,122830.0,122820.0,0.14400081]
[1755126067151,0.97146683,122830.0,122820.0,0.00012081]
[1755126067354,1.34416139,122830.0,122820.0,0.00012081]
[1755126067561,1.34416139,122830.0,122820.0,0.14372081]
[1755126068266,1.34416139,122830.0,122820.0,0.14356081]
[1755126069191,1.34416139,122830.0,122820.0,0.14340081]
[1755126069394,0.26617919,122790.0,122730.0,4.6947823]
[1755126069597,0.37269456,122770.0,122750.0,0.06684771]
[1755126070024,0.34890244,122780.0,122750.0,0.06684771]
[1755126070237,0.721597,122780.0,122750.0,0.14969771]
[1755126070450,0.34890244,122780.0,122760.0,0.14312]
[1755126070661,0.26617919,122770.0,122760.0,0.14312]
[1755126070872,0.26617919,122770.0,122750.0,0.14969771]
[1755126071088,0.26617919,122770.0,122760.0,0.22613]
[1755126071507,0.26617919,122770.0,122760.0,0.62409]
[1755126072169,0.26617919,122770.0,122760.0,0.37937]
[1755126072390,0.26617919,122770.0,122760.0,0.52237]
[1755126072657,0.26617919,122770.0,122760.0,0.27793]
[1755126072883,0.26617919,122770.0,122760.0,0.08285]
[1755126073079,0.26617919,122770.0,122760.0,0.22581]
[1755126074070,0.26617919,122770.0,122760.0,0.22573]
[1755126074271,0.26617919,122770.0,122760.0,0.22561]
[1755126074678,0.26617919,122770.0,122760.0,0.08285]
[1755126074891,0.26617919,122770.0,122760.0,0.22557]
[1755126075102,0.26617919,122770.0,122760.0,0.14264]
[1755126076054,0.26617919,122770.0,122760.0,0.08285]
[1755126076273,0.26617919,122770.0,122760.0,0.53826781]
[1755126076451,0.26617919,122770.0,122760.0,1.97156181]
[1755126076712,0.26617919,122770.0,122760.0,2.21428181]
[1755126076925,0.26617919,122800.0,122760.0,2.21424181]
[1755126077146,0.44255227,122840.0,122780.0,0.37269456]
[1755126077361,0.08272325,122830.0,122790.0,0.14268]
[1755126077583,0.08272325,122830.0,122790.0,0.22540325]
[1755126077793,0.06985771,122840.0,122790.0,0.68094781]
[1755126078008,0.06985771,122840.0,122800.0,0.22545]
[1755126078009,0.14957096,122840.0,122800.0,0.22545]
[1755126078226,0.15258096,122840.0,122800.0,0.22545]
[1755126078444,0.15258096,122840.0,122800.0,0.2255976]
[1755126078651,0.52527552,122840.0,122800.0,0.0829976]
[1755126078947,0.52527552,122840.0,122810.0,0.14272]
[1755126079175,0.15258096,122840.0,122810.0,0.14272]
[1755126079385,0.53035577,122840.0,122810.0,0.14272]
[1755126079601,0.52527552,122840.0,122810.0,0.14272]
[1755126079789,0.00301,122830.0,122810.0,0.14272]
[1755126080542,0.52226552,122840.0,122810.0,0.14272]
[1755126080543,0.52527552,122840.0,122810.0,0.14272]
[1755126080757,0.00809025,122830.0,122820.0,0.14256]
[1755126080969,0.00301,122830.0,122820.0,0.14256]
[1755126081207,0.79842781,122840.0,122820.0,0.14256]
[1755126081662,0.34301,122840.0,122830.0,0.29652]
[1755126081884,0.37570456,122850.0,122830.0,0.19508]
[1755126082109,0.00508025,122840.0,122800.0,0.45569216]
[1755126082327,0.00508025,122840.0,122810.0,0.14276]
[1755126082552,0.00301,122850.0,122810.0,0.45541781]
[1755126082797,0.06985771,122860.0,122820.0,0.59813781]
[1755126083007,0.07493796,122860.0,122830.0,0.14272]
[1755126083227,0.07493796,122860.0,122810.0,0.08285]
[1755126083228,0.00214,122840.0,122810.0,0.08285]
[1755126083442,0.37269456,122820.0,122810.0,0.1]
[1755126083650,0.37570456,122830.0,122820.0,0.14504]
[1755126083864,0.37784456,122830.0,122820.0,0.14524]
[1755126084091,0.00515,122830.0,122820.0,0.14524]
[1755126084545,0.00301,122830.0,122820.0,0.14524]
[1755126084960,0.00321,122840.0,122820.0,0.14524]
[1755126086030,0.00204,122830.0,122800.0,0.0001476]
[1755126086229,1.15223683,122810.0,122800.0,0.0001476]
[1755126086436,1.23817008,122810.0,122800.0,0.0001476]
[1755126086651,1.23817008,122810.0,122800.0,0.1453076]
[1755126087066,1.23817008,122810.0,122800.0,0.0001476]
[1755126087280,1.23817008,122810.0,122800.0,0.1451876]
[1755126087485,1.34576667,122810.0,122800.0,0.1451476]
[1755126087668,1.34576667,122810.0,122800.0,0.0001476]
[1755126087841,1.34576667,122810.0,122800.0,0.1451476]
[1755126088067,1.34576667,122810.0,122800.0,0.0001476]
[1755126088245,1.34576667,122810.0,122800.0,0.1450676]
[1755126088439,1.34576667,122810.0,122800.0,0.1449876]
[1755126088655,1.34576667,122810.0,122800.0,0.1449076]
[1755126089055,1.34576667,122810.0,122800.0,0.1448276]
[1755126089303,1.37033138,122810.0,122800.0,0.1448276]
[1755126089438,1.39533138,122810.0,122800.0,0.0001476]
[1755126089643,1.39533138,122810.0,122800.0,0.1447476]
[1755126090124,1.42033138,122810.0,122800.0,0.0001476]
[1755126090450,1.42033138,122810.0,122800.0,0.1446276]
[1755126091532,1.42033138,122810.0,122800.0,0.2966676]
[1755126091969,1.42033138,122810.0,122800.0,0.3395476]
[1755126091970,1.39533138,122810.0,122800.0,0.3395476]
[1755126092165,1.31137138,122810.0,122800.0,0.3395476]
[1755126092368,1.33637138,122810.0,122800.0,0.3395476]
[1755126092568,1.33637138,122810.0,122800.0,0.3394276]
[1755126092793,1.33637138,122810.0,122800.0,0.0001476]
[1755126093005,1.33637138,122810.0,122800.0,0.1443076]
[1755126093322,1.33637138,122810.0,122800.0,0.1442276]
[1755126093656,1.31273479,122810.0,122800.0,0.0001476]
[1755126093889,1.22088708,122810.0,122800.0,0.0001476]
[1755126094117,0.45049796,122810.0,122800.0,0.1441076]
[1755126094352,0.48319252,122810.0,122740.0,0.37124531]
[1755126094551,0.37777481,122800.0,122750.0,0.1]
[1755126094751,0.08272325,122790.0,122750.0,0.1]
[1755126094948,0.45541781,122790.0,122760.0,0.07894]
[1755126095582,0.45541781,122790.0,122770.0,0.14388]
[1755126096828,0.37269456,122800.0,122770.0,0.14402781]
[1755126097048,0.45541781,122800.0,122770.0,0.14402781]
[1755126097212,0.00508025,122790.0,122770.0,0.14402781]
[1755126097668,0.37777481,122790.0,122770.0,0.14402781]
[1755126097884,0.37269456,122790.0,122770.0,0.14402781]
[1755126098517,0.44275227,122820.0,122770.0,0.16181106]
[1755126098656,0.0878035,122810.0,122780.0,0.14332]
[1755126098861,0.0878035,122810.0,122780.0,0.22226]
[1755126099506,0.00508025,122810.0,122780.0,0.22226]
[1755126099915,0.43954227,122820.0,122780.0,0.22226]
[1755126100116,0.52226552,122820.0,122780.0,0.22226]
[1755126100323,0.52226552,122820.0,122780.0,0.30498325]
[1755126100527,0.14957096,122820.0,122790.0,0.14308]
[1755126100699,0.52226552,122820.0,122790.0,0.14308]
[1755126101513,0.52226552,122820.0,122810.0,0.29652]
[1755126102034,0.52547552,122820.0,122810.0,0.43932]
[1755126102206,0.52751552,122820.0,122810.0,0.43932]
[1755126102780,0.52751552,122820.0,122810.0,0.43946781]
[1755126103006,0.52547552,122820.0,122810.0,0.14294781]
[1755126103234,0.52226552,122820.0,122810.0,0.14294781]
[1755126104115,0.43954227,122820.0,122810.0,0.14294781]
[1755126104311,0.06684771,122820.0,122810.0,0.00014781]
[1755126104510,0.07192796,122820.0,122810.0,0.14274781]
[1755126105735,0.44462252,122820.0,122810.0,0.14250781]
[1755126105939,0.43954227,122820.0,122810.0,0.14250781]
[1755126106408,0.44275227,122820.0,122810.0,0.14250781]
[1755126106609,0.43954227,122820.0,122810.0,0.14250781]
[1755126107049,0.06684771,122820.0,122810.0,0.14250781]
[1755126107252,0.07192796,122820.0,122810.0,0.14250781]
[1755126107467,0.00321,122830.0,122810.0,0.00014781]
[1755126107669,0.08272325,122830.0,122810.0,0.14238781]
[1755126107872,0.0910135,122830.0,122810.0,0.14238781]
[1755126108087,0.0910135,122830.0,122810.0,0.00014781]
[1755126108258,0.46370806,122830.0,122820.0,0.14196]
[1755126108464,0.46066781,122830.0,122820.0,0.14196]
[1755126110009,0.78275227,122840.0,122820.0,0.14196]
[1755126110218,0.86547552,122840.0,122820.0,0.14196]
[1755126111158,0.86547552,122840.0,122780.0,0.52950562]
[1755126111308,0.86547552,122840.0,122790.0,0.08272325]
[1755126111510,0.86547552,122840.0,122830.0,0.29644]
[1755126111867,0.07005771,122840.0,122830.0,0.19504]
[1755126112402,0.07005771,122840.0,122830.0,0.33648]
[1755126112610,0.07005771,122840.0,122830.0,0.336628]
[1755126113221,0.00321,122840.0,122830.0,0.336628]
[1755126113709,0.37590456,122850.0,122830.0,0.336628]
[1755126113911,0.08593325,122850.0,122830.0,0.336628]
[1755126114113,0.46049806,122850.0,122830.0,0.336628]
[1755126114335,0.00321,122840.0,122830.0,0.336628]
[1755126114573,0.00525,122840.0,122830.0,0.141588]
[1755126115707,0.37794456,122840.0,122830.0,0.141588]
[1755126116754,0.37794456,122840.0,122830.0,0.141308]
[1755126117395,0.00525,122840.0,122830.0,0.141308]
[1755126117632,0.37794456,122840.0,122830.0,0.141308]
[1755126118665,0.37794456,122840.0,122830.0,0.000148]
[1755126119002,0.37794456,122840.0,122830.0,0.141308]
[1755126119170,0.00525,122840.0,122830.0,0.141308]
[1755126119378,0.37794456,122840.0,122830.0,0.141308]
[1755126120509,0.00525,122840.0,122830.0,0.141308]
[1755126120689,0.37794456,122840.0,122830.0,0.141308]
[1755126121328,0.00525,122840.0,122830.0,0.141308]
[1755126121518,0.08591325,122850.0,122830.0,0.437708]
[1755126121881,0.45860781,122850.0,122830.0,0.336308]
[1755126122105,0.08591325,122850.0,122830.0,0.141268]
[1755126123022,0.45860781,122850.0,122830.0,0.141268]
[1755126123852,0.08591325,122850.0,122830.0,0.141268]
[1755126124194,0.45860781,122850.0,122830.0,0.141268]
[1755126125424,0.26617919,122840.0,122830.0,0.141268]
[1755126127113,0.26936919,122840.0,122830.0,0.141268]
[1755126127982,0.26617919,122840.0,122830.0,0.141268]
[1755126128428,0.26936919,122840.0,122830.0,0.141268]
[1755126128636,0.26617919,122840.0,122830.0,0.141268]
[1755126128845,0.00319,122860.0,122830.0,0.70459125]
[1755126129063,0.00319,122860.0,122830.0,0.70080581]
[1755126129269,0.00319,122860.0,122830.0,0.18287125]
[1755126129473,0.00319,122860.0,122840.0,0.64516]
[1755126129734,0.00319,122860.0,122850.0,0.14516]
[1755126129938,0.00532,122860.0,122850.0,0.14516]
[1755126130572,0.37801456,122860.0,122850.0,0.14508]
[1755126131201,0.37801456,122860.0,122830.0,0.08287125]
[1755126131413,0.44273227,122850.0,122830.0,0.000148]
[1755126131548,0.44273227,122850.0,122840.0,0.54272]
[1755126131756,0.44486227,122850.0,122840.0,0.33992]
[1755126132575,0.44486227,122850.0,122830.0,0.000148]
[1755126132776,0.46368806,122840.0,122830.0,0.000148]
[1755126133015,0.46073781,122840.0,122830.0,0.000148]
[1755126133227,0.46073781,122840.0,122830.0,0.145308]
[1755126135704,0.08804325,122840.0,122830.0,0.145308]
[1755126135897,0.46581806,122840.0,122830.0,0.145308]
[1755126136159,0.46073781,122840.0,122830.0,0.145308]
[1755126136573,0.46073781,122840.0,122830.0,0.000148]
[1755126137017,0.46073781,122840.0,122830.0,0.144868]
[1755126137195,0.46073781,122840.0,122830.0,0.000148]
[1755126137403,0.46073781,122840.0,122830.0,0.144748]
[1755126137613,0.46073781,122840.0,122830.0,0.000148]
[1755126137839,0.46073781,122840.0,122830.0,0.144748]
[1755126138045,0.46073781,122840.0,122830.0,0.144628]
[1755126139104,0.46073781,122840.0,122830.0,0.000148]
[1755126139309,0.46073781,122840.0,122830.0,0.144468]
[1755126139530,0.08804325,122840.0,122830.0,0.000148]
[1755126139742,0.08804325,122840.0,122830.0,0.144428]
[1755126140729,0.46581806,122840.0,122830.0,0.144428]
[1755126140945,0.80073781,122840.0,122830.0,0.000148]
[1755126141529,0.80073781,122840.0,122830.0,0.440588]
[1755126141734,0.82512481,122840.0,122830.0,0.195148]
[1755126141939,0.90771481,122840.0,122770.0,0.02749667]
[1755126142171,0.37269456,122790.0,122770.0,0.00014805]
[1755126142381,0.15276096,122830.0,122780.0,0.14392]
[1755126142591,0.00213,122790.0,122780.0,0.14392]
[1755126142989,0.00532,122790.0,122780.0,0.14392]
[1755126144704,0.38309481,122790.0,122780.0,0.14368]
[1755126144914,0.37801456,122790.0,122780.0,0.14368]
[1755126145232,0.46073781,122790.0,122780.0,0.14368]
[1755126145605,0.46073781,122790.0,122770.0,0.00014805]
[1755126145824,0.45754781,122790.0,122770.0,0.00014805]
[1755126145989,0.00297,122780.0,122770.0,0.00014805]
[1755126146187,0.00499,122780.0,122770.0,0.14346805]
[1755126147812,0.53233577,122780.0,122770.0,0.00014805]
[1755126148020,0.52725552,122780.0,122770.0,0.00014805]
[1755126148219,0.52725552,122780.0,122770.0,0.14314805]
[1755126151446,0.52725552,122780.0,122770.0,0.54110805]
[1755126151645,0.15456096,122780.0,122770.0,0.43914805]
[1755126152720,0.15964121,122780.0,122740.0,0.1]
[1755126152920,0.15964121,122780.0,122740.0,0.10049239]
[1755126153946,0.43954227,122760.0,122740.0,0.00049239]
[1755126154146,0.43954227,122760.0,122750.0,0.14208]
[1755126154387,0.07183771,122760.0,122750.0,0.14208]
[1755126154591,0.07691796,122760.0,122750.0,0.14208]
[1755126154938,0.07691796,122760.0,122750.0,0.142]
[1755126155365,0.53233577,122760.0,122750.0,0.14192]
[1755126155671,0.52725552,122760.0,122750.0,0.14192]
[1755126156068,0.55074389,122760.0,122740.0,0.00049239]
[1755126156310,0.45838781,122750.0,122740.0,0.00049239]
[1755126156537,0.29057819,122780.0,122740.0,0.37318695]
[1755126156747,0.08569325,122780.0,122750.0,0.37269456]
[1755126156940,0.40216981,122800.0,122760.0,0.14176]
[1755126157174,0.00297,122790.0,122760.0,0.19730518]
[1755126157389,0.37566456,122790.0,122770.0,0.14172]
[1755126157595,0.37566456,122790.0,122780.0,0.14164]
[1755126157815,0.00499,122790.0,122780.0,0.14164]
[1755126158027,0.00297,122800.0,122760.0,0.37269456]
[1755126158241,0.00297,122800.0,122770.0,0.02450046]
[1755126158459,0.0907735,122800.0,122770.0,0.1416]
[1755126158889,0.0907735,122800.0,122770.0,0.14174808]
[1755126161496,0.0907735,122800.0,122790.0,0.29652]
[1755126161712,0.06684771,122810.0,122790.0,0.43792]
[1755126161923,0.00805025,122810.0,122790.0,0.19508]
[1755126162330,0.00805025,122810.0,122800.0,0.1414]
[1755126162593,0.00297,122800.0,122770.0,0.37284264]
[1755126162793,0.00297,122790.0,122770.0,0.00014808]
[1755126163006,0.00297,122790.0,122780.0,0.1414]
[1755126163348,0.00297,122800.0,122780.0,0.1414]
[1755126163592,0.15762121,122810.0,122780.0,0.1414]
[1755126163975,0.08569325,122810.0,122790.0,0.1414]
[1755126164183,0.0907735,122810.0,122790.0,0.1414]
[1755126164661,0.08569325,122810.0,122790.0,0.1414]
[1755126165644,0.08569325,122810.0,122780.0,0.37269456]
[1755126165847,0.08569325,122810.0,122800.0,0.14136]
[1755126166051,0.34297,122820.0,122790.0,0.37269456]
[1755126166259,0.34297,122820.0,122800.0,0.14136]
[1755126166260,0.34,122820.0,122800.0,0.14136]
[1755126167200,0.06981771,122830.0,122800.0,0.14136]
[1755126167326,0.15762121,122830.0,122800.0,0.14136]
[1755126167732,0.00297,122820.0,122800.0,0.14136]
[1755126169551,0.00297,122820.0,122780.0,0.37269456]
[1755126169762,0.00297,122820.0,122790.0,0.22408325]
[1755126171570,0.00297,122820.0,122810.0,0.29652]
[1755126171768,0.00499,122820.0,122810.0,0.43784]
[1755126172386,0.00499,122820.0,122810.0,0.29652]
[1755126172591,0.00297,122820.0,122810.0,0.43784]
[1755126172831,0.0907735,122830.0,122810.0,0.43798808]
[1755126173192,0.0907735,122830.0,122810.0,0.14146808]
[1755126174396,0.00297,122820.0,122810.0,0.14146808]
[1755126174872,0.00499,122820.0,122810.0,0.14146808]
[1755126177438,0.00499,122820.0,122810.0,0.00014808]
[1755126177439,0.46040781,122820.0,122810.0,0.00014808]
[1755126177713,0.46040781,122820.0,122810.0,0.14142808]
[1755126181369,0.80040781,122820.0,122810.0,0.10154808]
[1755126181573,0.80040781,122820.0,122810.0,0.43786808]
[1755126181786,0.80040781,122820.0,122810.0,0.33646808]
[1755126182192,0.80040781,122820.0,122810.0,0.14138808]
[1755126182436,0.80040781,122820.0,122810.0,0.00014808]
[1755126182668,0.87999781,122820.0,122810.0,0.00014808]
[1755126182841,0.87999781,122820.0,122810.0,0.14138808]
[1755126183277,0.50730325,122820.0,122810.0,0.14138808]
[1755126183489,0.87999781,122820.0,122810.0,0.14138808]
[1755126183696,0.80040781,122820.0,122810.0,0.14138808]
[1755126186623,0.42771325,122820.0,122810.0,0.14138808]
[1755126186835,0.80040781,122820.0,122810.0,0.14138808]
[1755126186992,0.82480181,122820.0,122810.0,0.14138808]
[1755126187727,0.26603111,122800.0,122750.0,0.39646108]
[1755126187874,0.35684461,122790.0,122750.0,0.57124928]
[1755126188074,0.35176436,122790.0,122750.0,0.57124928]
[1755126188556,0.35176436,122790.0,122780.0,0.37269456]
[1755126188557,0.26603111,122790.0,122780.0,0.37269456]
[1755126188706,0.26603111,122780.0,122760.0,0.44733456]
[1755126188976,0.26603111,122780.0,122770.0,0.1412]
[1755126190560,0.26603111,122780.0,122760.0,0.44733456]
[1755126190761,0.26603111,122780.0,122770.0,0.51389456]
[1755126190987,0.26603111,122780.0,122770.0,0.37269456]
[1755126191223,0.26603111,122780.0,122770.0,0.51389456]
[1755126191631,0.26603111,122780.0,122770.0,0.91185456]
[1755126192022,0.26603111,122780.0,122770.0,0.66921456]
[1755126192166,0.26603111,122780.0,122770.0,0.78751563]
[1755126192361,0.26603111,122780.0,122770.0,0.82723563]
[1755126192609,0.26603111,122780.0,122770.0,0.63215563]
[1755126192977,0.26603111,122780.0,122770.0,0.71487888]
[1755126194257,0.26603111,122780.0,122770.0,0.34218432]
[1755126194459,0.26603111,122800.0,122770.0,1.09819988]
[1755126194662,0.26603111,122800.0,122780.0,0.37269456]
[1755126194959,0.26603111,122800.0,122790.0,0.14116]
[1755126196050,0.26603111,122800.0,122790.0,0.51385456]
[1755126196216,0.26603111,122800.0,122790.0,0.51400276]
[1755126196417,0.26603111,122800.0,122790.0,0.1413082]
[1755126196641,0.26603111,122800.0,122790.0,0.0001482]
[1755126196841,0.26603111,122800.0,122790.0,0.51396276]
[1755126197089,0.26603111,122800.0,122790.0,0.1412682]
[1755126199130,0.26603111,122800.0,122790.0,0.1412282]
[1755126199982,0.26603111,122800.0,122790.0,0.54490996]
[1755126200188,0.26603111,122800.0,122790.0,0.51392276]
[1755126200362,0.26603111,122800.0,122790.0,0.54490996]
[1755126200563,0.26603111,122800.0,122790.0,0.48655321]
[1755126200795,0.26603111,122800.0,122790.0,0.62763321]
[1755126201003,0.26603111,122800.0,122790.0,0.48655321]
[1755126201210,0.26603111,122800.0,122790.0,0.62759321]
[1755126201590,0.26603111,122800.0,122790.0,1.02555321]
[1755126202403,0.33588882,122830.0,122790.0,1.02555321]
[1755126202611,0.26603111,122820.0,122800.0,0.40205453]
[1755126202809,0.26603111,122820.0,122810.0,0.14104]
[1755126203023,0.26904111,122820.0,122810.0,0.14104]
[1755126204795,0.26603111,122820.0,122810.0,0.14104]
[1755126204998,0.26603111,122820.0,122810.0,0.54273598]
[1755126205235,0.26603111,122820.0,122810.0,0.54269598]
[1755126205646,0.26603111,122820.0,122810.0,0.40169598]
[1755126205873,0.26603111,122820.0,122810.0,0.51365456]
[1755126206905,0.26603111,122820.0,122810.0,0.5382162]
[1755126207311,0.26603111,122820.0,122810.0,0.56721762]
[1755126207512,0.26603111,122820.0,122810.0,0.5382162]
[1755126207714,0.26603111,122820.0,122810.0,0.56721762]
[1755126208956,0.26603111,122820.0,122810.0,0.5382162]
[1755126209801,0.26603111,122820.0,122810.0,0.56721762]
[1755126209977,0.26921111,122820.0,122810.0,0.16552164]
[1755126210183,0.26921111,122820.0,122810.0,0.5382162]
[1755126210388,0.27124111,122820.0,122810.0,0.16552164]
[1755126211594,0.27124111,122820.0,122810.0,0.56336164]
[1755126212008,0.27124111,122820.0,122810.0,0.46196164]
[1755126212134,0.27124111,122820.0,122810.0,0.36048164]
[1755126214081,0.27124111,122820.0,122810.0,0.16544164]
[1755126215023,0.27124111,122820.0,122810.0,0.02456164]
[1755126215226,0.27124111,122820.0,122810.0,0.16536164]
[1755126215427,0.27124111,122820.0,122810.0,0.1408]
[1755126215641,0.27124111,122820.0,122810.0,0.17445796]
[1755126216593,0.27124111,122820.0,122810.0,0.54715252]
[1755126216871,0.27124111,122820.0,122810.0,0.5554401]
[1755126218905,0.26921111,122820.0,122810.0,0.5554401]
[1755126220132,0.26921111,122820.0,122810.0,0.17445796]
[1755126220353,0.27124111,122820.0,122810.0,0.17445796]
[1755126220579,0.27124111,122820.0,122810.0,0.5554401]
[1755126221451,0.27124111,122820.0,122810.0,0.8517201]
[1755126223212,0.27124111,122820.0,122810.0,0.22865796]
[1755126223436,0.27124111,122820.0,122810.0,0.36933796]
[1755126224222,0.27124111,122820.0,122810.0,0.17429796]
[1755126225502,0.27124111,122820.0,122810.0,0.5552401]
[1755126226247,0.27124111,122820.0,122810.0,0.03365796]
[1755126226444,0.27124111,122820.0,122810.0,0.52158214]
[1755126227424,0.27124111,122820.0,122800.0,0.38098214]
[1755126227641,0.27124111,122820.0,122810.0,0.52154214]
[1755126228001,0.27124111,122820.0,122810.0,0.17325874]
[1755126228344,0.27124111,122820.0,122810.0,0.55424088]
[1755126228754,0.27124111,122820.0,122810.0,0.55420088]
[1755126229112,0.27124111,122820.0,122810.0,0.41368088]
[1755126229313,0.27124111,122820.0,122810.0,0.55420088]
[1755126229532,0.27124111,122820.0,122790.0,0.08287145]
[1755126229771,0.00318,122810.0,122800.0,0.52150214]
[1755126229973,0.00521,122810.0,122800.0,0.52150214]
[1755126230832,0.00521,122810.0,122800.0,0.14052]
[1755126231035,0.00521,122810.0,122800.0,0.52150214]
[1755126231468,0.00521,122810.0,122800.0,0.91930214]
[1755126232172,0.27124111,122810.0,122800.0,0.71650214]
[1755126234061,0.27124111,122810.0,122800.0,0.52150214]
[1755126235690,0.27124111,122810.0,122800.0,0.14052]
[1755126235912,0.27124111,122810.0,122800.0,0.52150214]
[1755126237845,0.27124111,122810.0,122800.0,0.76196428]
[1755126238065,0.26603111,122810.0,122800.0,0.84468753]
[1755126238274,0.26603111,122810.0,122800.0,2.21433485]
[1755126238485,0.26603111,122810.0,122800.0,2.09988085]
[1755126239307,0.26603111,122810.0,122800.0,2.03662085]
[1755126239706,0.26603111,122810.0,122800.0,2.17690085]
[1755126239938,0.00298,122840.0,122800.0,2.20190085]
[1755126240146,0.00298,122840.0,122830.0,0.38098214]
[1755126240313,0.00298,122840.0,122830.0,0.52126214]
[1755126240518,0.00298,122840.0,122830.0,0.54824404]
[1755126240955,0.00512,122840.0,122810.0,0.08790615]
[1755126241126,0.00512,122840.0,122830.0,0.38098214]
[1755126241273,0.00512,122840.0,122830.0,0.38113034]
[1755126241468,0.00512,122840.0,122830.0,0.77893034]
[1755126241671,0.26901111,122850.0,122830.0,0.76025359]
[1755126241884,0.26901111,122850.0,122840.0,0.52122214]
[1755126242093,0.27115111,122850.0,122840.0,0.52122214]
[1755126242311,0.27115111,122850.0,122840.0,0.90220428]
[1755126242943,0.27115111,122850.0,122830.0,0.08287145]
[1755126243164,0.27115111,122850.0,122840.0,0.52118214]
[1755126244137,0.27115111,122850.0,122840.0,0.38098214]
[1755126244254,0.27115111,122850.0,122840.0,0.90216428]
[1755126244460,0.27115111,122850.0,122840.0,0.52118214]
[1755126245721,0.27115111,122850.0,122840.0,0.90216428]
[1755126246088,0.26901111,122850.0,122840.0,0.90216428]
[1755126246499,0.27115111,122850.0,122840.0,0.90216428]
[1755126246721,0.00512,122850.0,122840.0,0.90216428]
[1755126246966,0.00512,122850.0,122840.0,0.935082]
[1755126247389,0.00298,122850.0,122840.0,0.794882]
[1755126247541,0.26901111,122860.0,122840.0,0.81981984]
[1755126247736,0.26901111,122860.0,122850.0,0.54599998]
[1755126247990,0.26603111,122860.0,122850.0,0.48864323]
[1755126248224,0.26603111,122860.0,122850.0,0.63242089]
[1755126248346,0.00318,122870.0,122850.0,0.63242089]
[1755126248546,0.0002,122870.0,122860.0,0.46740305]
[1755126248747,0.0002,122870.0,122860.0,0.63242089]
[1755126248978,0.0002,122870.0,122860.0,0.48864323]
[1755126249296,0.0002,122870.0,122860.0,0.62868323]
[1755126250046,0.0002,122870.0,122860.0,0.87332303]
[1755126250257,0.0002,122870.0,122860.0,0.63238089]
[1755126250459,0.0002,122870.0,122860.0,2.06683503]
[1755126250668,0.0002,122870.0,122860.0,2.30687503]
[1755126250870,2.189e-05,122870.0,122860.0,2.30687503]
[1755126251074,2.189e-05,122870.0,122860.0,2.16683503]
[1755126251275,2.189e-05,122870.0,122860.0,2.30683503]
[1755126251480,2.189e-05,122870.0,122860.0,2.70463503]
[1755126252098,2.189e-05,122870.0,122860.0,2.50183503]
[1755126252304,2.189e-05,122870.0,122860.0,2.30679503]
[1755126253074,2.189e-05,122870.0,122860.0,2.26889503]
[1755126253283,2.189e-05,122870.0,122860.0,2.40885503]
[1755126253485,2.189e-05,122870.0,122860.0,2.26889503]
[1755126253674,2.189e-05,122870.0,122860.0,2.64397131]
[1755126253862,2.189e-05,122870.0,122860.0,2.78393131]
[1755126254273,2.189e-05,122870.0,122860.0,2.64397131]
[1755126254468,2.189e-05,122870.0,122860.0,2.78389131]
[1755126255566,0.0002,122890.0,122880.0,0.05]
[1755126255791,0.0002,122890.0,122880.0,1.07339966]
[1755126256009,0.0002,122890.0,122880.0,6.00693266]
[1755126256228,0.0002,122890.0,122880.0,5.92959266]
[1755126256628,0.0002,122890.0,122880.0,6.55167694]
[1755126256872,0.00069353,122890.0,122880.0,7.03155694]
[1755126257461,0.1,122900.0,122890.0,0.39]
[1755126257664,0.1,122900.0,122890.0,6.52742774]
[1755126257866,0.1,122900.0,122890.0,4.22817653]
[1755126258810,0.1,122900.0,122890.0,2.23801645]
[1755126259016,0.1,122900.0,122890.0,2.49470059]
[1755126259186,0.1,122900.0,122890.0,3.03471921]
[1755126259378,0.1,122900.0,122890.0,2.89491921]
[1755126259578,0.1,122900.0,122890.0,3.04260353]
[1755126259842,0.1,122900.0,122890.0,2.90280353]
[1755126260046,0.1,122900.0,122890.0,3.04260353]
[1755126261021,0.1,122900.0,122890.0,2.90280353]
[1755126261216,0.1,122900.0,122890.0,3.04256353]
[1755126261421,0.1,122900.0,122890.0,3.24520353]
[1755126261707,0.1,122900.0,122890.0,3.44008353]
[1755126262704,0.1,122900.0,122890.0,3.43219921]
[1755126264093,0.1,122900.0,122890.0,3.22955921]
[1755126264688,0.1,122900.0,122890.0,3.03459921]
[1755126264927,0.1,122900.0,122890.0,3.00959921]
[1755126265091,0.1,122900.0,122890.0,3.03459921]
[1755126265301,0.1,122900.0,122890.0,3.00959921]
[1755126265503,0.1,122900.0,122890.0,3.03459921]
[1755126265704,0.1,122900.0,122890.0,3.00959921]
[1755126265919,0.1,122900.0,122890.0,3.03459921]
[1755126266200,0.1,122900.0,122890.0,3.12013921]
[1755126266413,0.1,122900.0,122890.0,2.89491921]
[1755126266637,0.1,122900.0,122890.0,3.03451921]
[1755126266843,0.1,122900.0,122890.0,3.0588364]
[1755126268851,0.1,122900.0,122890.0,3.07262292]
[1755126269423,0.1,122900.0,122890.0,3.0588364]
[1755126271607,0.1,122900.0,122890.0,3.4563164]
[1755126272292,0.10503,122900.0,122890.0,2.15019178]
[1755126272495,0.10503,122900.0,122890.0,1.52561478]
[1755126272708,0.10503,122900.0,122890.0,1.66509478]
[1755126272926,0.10503,122900.0,122890.0,1.68433126]
[1755126273550,0.10503,122900.0,122890.0,1.66509478]
[1755126274165,0.10305,122900.0,122890.0,1.66509478]
[1755126274376,0.10305,122900.0,122890.0,1.90659692]
[1755126274528,0.1,122900.0,122890.0,2.06939283]
[1755126275143,0.091,122900.0,122890.0,2.06939283]
[1755126275349,0.084,122900.0,122890.0,2.06939283]
[1755126275576,0.085,122900.0,122890.0,2.08039283]
[1755126276143,0.086,122900.0,122890.0,2.08839283]
[1755126276385,0.086,122900.0,122890.0,2.08835283]
[1755126277779,0.086,122900.0,122890.0,1.32638855]
[1755126277980,0.086,122900.0,122890.0,2.08835283]
[1755126281083,0.086,122900.0,122890.0,2.06403564]
[1755126281497,0.086,122900.0,122890.0,2.46147564]
[1755126282337,0.086,122900.0,122890.0,2.25887564]
[1755126282543,0.086,122900.0,122890.0,2.25871564]